{"text_format":"3","workbook":"xlsx","n_sheets":13,"sheets":["Začátek","Základy","Úvod do funkcí","PRŮMĚR","MIN a MAX","Datum a čas","Spojování textu a čísel","Příkazy KDYŽ","SVYHLEDAT","Podmíněné funkce","Průvodce funkcemi","Chyby ve vzorcích","Další informace"],"not_rendered":{"images":30,"defined_names":21},"read":"whole","date_system":"1900"}

{"sheet":"Začátek","index":0,"n_rows":4,"n_cols":1,"rows_kept":4}
[]
["Začínáme se vzorci"]
["Projděte si pár kroků, které vás naučí pracovat se vzorci a funkcemi v Excelu, nejvýkonnější tabulkové aplikaci na světě."]
["Na začátek přejdete stisknutím CTRL+HOME. Pokud chcete začít s prohlídkou, stiskněte CTRL+PAGE DOWN."]

{"sheet":"Základy","index":1,"n_rows":43,"n_cols":10,"rows_kept":43}
["Základy: matematické výpočty v Excelu"]
["Ke sčítání, odečítání, násobení a dělení v Excelu nemusíte používat žádné předdefinované funkce. Stačí použít základní operátory: +, -, *, /. Všechny vzorce začínají znaménkem rovná se (=).\n",null,"Použít čísla:",null,"Operace:","Vzorce:","Odpovědi:"]
["Pokud chcete čísla sečíst, vyberte buňku F3, zadejte =C3+C4 a stiskněte Enter. \n",null,1,null,"Sčítání (+) ",null,{"$f":"C3+C4","v":3}]
["Pokud chcete čísla odečíst, vyberte buňku F4, zadejte =C3-C4 a stiskněte Enter. ",null,2,null,"Odečítání (-) ",null,{"$f":"C3-C4","v":-1}]
["Pokud chcete čísla vynásobit, vyberte buňku F5, zadejte =C3*C4 a stiskněte Enter.\n",{"$nulls":3},"Násobení (*) ",null,{"$f":"C3*C4","v":2}]
["Pokud chcete čísla vydělit, vyberte buňku F6, zadejte =C3/C4 a stiskněte Enter.\n",{"$nulls":3},"Dělení (/) ",null,{"$f":"C3/C4","v":0.5}]
["Všimněte si: Změňte čísla v buňkách C3 a C4 a podívejte se, jak se automaticky změní výsledky vzorců.",{"$nulls":3},"Umocnění (^) ",null,{"$f":"C3^C4","v":1}]
["BONUS: K umocňování hodnot můžete použít symbol stříška (^), například =A1^A2. Zadat ho můžete kombinací kláves Ctrl+Alt+š, kterou je třeba potvrdit mezerníkem. Do buňky F7 zadejte =C3^C4."]
["Podívat se na to podrobněji"]
["Další krok"]
["Další informace o vzorcích, buňkách a oblastech"]
["Excel tvoří jednotlivé buňky, které jsou seskupené do řádků a sloupců. Řádky jsou číslované a sloupce jsou označené písmeny. K dispozici je více než 1 milion řádků a 16 000 sloupců a vzorce můžete vkládat do kterýchkoliv z nich. \n"]
["Vzorce můžou obsahovat odkazy na buňky, oblasti odkazů na buňky, operátory a konstanty. Toto všechno jsou příklady vzorců:\n\n=A1+B1\n=10+20\n=SUMA(A1:A10)\n\n"]
["Můžete si všimnout, že ve třetím příkladu výše jsme použili funkci SUMA. Funkce je předdefinovaný příkaz, který vezme hodnotu nebo hodnoty, provede s nimi nějaký výpočet a vrátí výsledek. Funkce SUMA například vezme odkazy na buňky nebo oblasti, které zadáte, a sečte je. V tomto příkladu sečte buňky A1 až A10. Excel nabízí více než 400 funkcí, které můžete prozkoumat na kartě Vzorce.\n"]
["Vzorce s funkcemi začínají znaménkem rovná se, za kterým je název funkce a její argumenty (hodnoty, které funkce používá k výpočtu) uzavřené v závorkách. \n"]
["Vzorec se potvrzuje stisknutím klávesy Enter. Když ji stisknete, vzorec se vypočítá a v buňce se zobrazí výsledek. Pokud chcete vidět samotný vzorec, můžete se podívat na řádek vzorců pod pásem karet nebo stisknutím klávesy F2 přejít do režimu úprav, ve kterém vzorec uvidíte v buňce. Když pak zase stisknete klávesu Enter, vzorec se bude považovat za dokončený a vypočítá se výsledek.\n\n"]
["Pár vysvětlivek ke vzorcům"]
["=10+20 je vzorec, kde 10 a 20 jsou konstanty a znaménko + je operátor."]
["=SUMA(A1:A10) je vzorec, kde SUMA je název funkce, závorky obsahují argumenty funkce a A1:A10 je oblast buněk pro funkci."]
["=SUMA(A1:A10;C1:C10) je vzorec, kde SUMA je název funkce, závorky obsahují argumenty funkce a A1:A10;C1:C10 jsou oblasti buněk pro funkci oddělené středníkem."]
["JE DOBRÉ VĚDĚT: Konstanty jsou hodnoty, které zadáte do buněk nebo vzorců. Vzorec =10+20 může sice vrátit stejný výsledek jako =A1+B1, ale používání konstant se ve vzorcích příliš nedoporučuje. Proč? Protože konstantu nejde snadno vidět bez toho, abyste vybrali danou buňku a vyhledali ji v jejím vzorci. To může ztížit její pozdější změny. Mnohem jednodušší je umístit konstanty do buněk, kde se dají snadno upravit a kam na ně můžou odkazovat vzorce.\n\nPříklad: Vyberte níže žlutou buňku s hodnotou 12. Uvidíte, že jsme použili funkci SUMA s oblastí buněk. Nezadali jsme přímo do vzorce konstanty 4 a 8. \n"]
["Předchozí"]
["Další"]
["Další informace na webu"]
["Použití Excelu jako kalkulačky"]
["Přehled vzorců v Excelu"]
["Funkce Excelu (podle kategorie) "]
["Funkce Excelu (podle abecedy) "]
["Bezplatná školení k Excelu online"]
{"$rows_empty":10}
[{"$nulls":9},"Hodnoty"]
[{"$nulls":9},4]
[{"$nulls":9},8]
[{"$nulls":9},{"$f":"SUM(J41:J42)","v":12}]

{"sheet":"Úvod do funkcí","index":2,"n_rows":51,"n_cols":7,"rows_kept":51}
["Úvod do funkcí"]
["Funkce umožňují dělat celou řadu věcí, například řešit matematické operace, vyhledávat hodnoty, nebo dokonce i provádět výpočty s daty a časy. Pojďme si vyzkoušet několik způsobů, jak sečíst hodnoty pomocí funkce SUMA.",null,"Ovoce","Množství",null,"Maso","Množství"]
["Do sloupce Množství vedle sloupce Ovoce zadejte do buňky D7 vzorec =SUMA(D3:D6). Můžete také zadat =SUMA(, pak vybrat oblast myší a stisknout klávesu Enter. Tento vzorec sečte hodnoty v buňkách D3, D4, D5 a D6. Odpověď by měla být 170.\n",null,"Jablka",50,null,"Hovězí",50]
["Teď pojďme vyzkoušet funkci Automatické shrnutí. Vyberte buňku pod množstvími masa (tj. buňku G7) a potom přejděte na Vzorce > Automatické shrnutí > vyberte Součet. Uvidíte, že Excel za vás automaticky zadá vzorec. Potvrďte ho stisknutím klávesy Enter. Funkce Automatické shrnutí nabízí všechny nejčastější funkce.\n",null,"Pomeranče",20,null,"Kuřecí",30]
["Tady je šikovná klávesová zkratka. Vyberte buňku D15 a stiskněte klávesy Alt = a pak Enter. Tím se automaticky zadá funkce SUMA.",null,"Banány",60,null,"Vepřové",10]
["Podívat se na to podrobněji",null,"Citrony",40,null,"Ryby",50]
["BONUS\nZkuste použít funkci POČET libovolným ze způsobů, které jste si už vyzkoušeli. Funkce POČET spočítá buňky v oblasti, které obsahují čísla.",null,"SUMA > ",{"$f":"SUM(D3:D6)","v":170},null,"SUMA > "]
["Další krok"]
["Další informace o funkcích",null,"Položka","Množství",null,"Položka","Množství"]
["Přejděte na kartu Vzorce a projděte si knihovnu funkcí, ve které jsou funkce uvedené podle kategorií, například Textové, Datum a čas apod. Tlačítko Vložit funkci vám umožní hledat funkce podle názvu a spustit průvodce funkcemi, který vám pomůže s vytvořením vzorce. \n\nKdyž stisknete klávesu = a začnete psát název funkce, Excel spustí technologii Intellisense, která zobrazí seznam všech funkcí začínajících napsanými písmeny. Až najdete tu, kterou chcete, stiskněte klávesu Tab a Excel název funkce automaticky dokončí a přichystá vám za ním levou závorku. Zobrazí také požadované a volitelné argumenty. \n\n\n\nTeď se pojďme podívat na anatomii několika funkcí. Funkce SUMA má tuto strukturu:",null,"Chleba",50,null,"Chleba",50]
["Pokud by tato funkce SUMA uměla mluvit, řekla by, že vrací součet všech hodnot v buňkách D35 až D38 a celém sloupci H. SUMA je název funkce, D35:D38 je oblast sloužící jako první argument (aspoň jeden argument je skoro vždycky povinný) a H:H je oblast sloužící jako druhý argument. Argumenty jsou oddělené středníky. Teď si ale pojďme ještě vyzkoušet jednu funkci, která nevyžaduje žádné argumenty.\n",null,"Koblihy",100,null,"Koblihy",100]
["Funkce DNES vrací aktuální datum. Její výsledek se automaticky zaktualizuje vždy, když Excel přepočítá sešit.",null,"Sušenky",40,null,"Sušenky",40]
["VŠIMNĚTE SI\nVyberte tyto buňky. Pak v pravém dolním rohu okna Excelu hledejte údaj Součet: 170. Tomuto dolnímu pruhu se říká stavový řádek a představuje další způsob, jak rychle najít součet a další podrobnosti o vybrané buňce nebo oblasti. ",null,"Buchty",50,null,"Buchty",50]
["DŮLEŽITÝ DETAIL\nPoklikejte na tuto buňku. Na konci si všimněte čísla 100. Přestože je možné takto do vzorce vkládat čísla, nedoporučujeme to, pokud to není absolutně nutné. Říká se tomu konstanta a snadno se zapomene, že tam je. Doporučujeme místo toho použít odkaz na jinou buňku, třeba F51. Tak je dobře na očích a není schovaný ve vzorci. ",null,"Koláče",20,null,"Koláče",20]
["Další informace na webu",null,"SUMA > ",null,null,"POČET >"]
["Všechny informace o funkci SUMA"]
["Sčítání čísel pomocí tlačítka Automatické shrnutí"]
["Všechny informace o funkci POČET"]
["Bezplatná školení k Excelu online"]
["Zpět nahoru"]
["Další krok"]
{"$rows_empty":12}
[null,null,"Ovoce","Množství"]
[null,null,"Jablka",50]
[null,null,"Pomeranče",20]
[null,null,"Banány",60]
[null,null,"Citrony",40]
[null,null,"SUMA > ",{"$f":"SUM(D35:D38)","v":170}]
[]
[]
[]
[]
[null,null,"Položka","Množství"]
[null,null,"Auta",20]
[null,null,"Nákladní auta",10]
[null,null,"Jízdní kola",10]
[null,null,"Brusle",40]
[]
[{"$nulls":3},"Celkem:",null,"Další hodnota","Nový součet"]
[{"$nulls":3},{"$f":"SUM(D45:D48,100)","v":180},null,100,{"$f":"SUM(D45:D48,F51)","v":180}]

{"sheet":"PRŮMĚR","index":3,"n_rows":15,"n_cols":7,"rows_kept":15}
["Funkce PRŮMĚR"]
["Pomocí funkce PRŮMĚR můžete získat průměr z čísel v oblasti buněk.",null,"Ovoce","Množství",null,"Maso","Množství"]
["Vyberte buňku D7 a pomocí nabídky u tlačítka Automatické shrnutí přidejte funkci PRŮMĚR.",null,"Jablka",50,null,"Hovězí",50]
["Teď vyberte buňku G7 a zadejte funkci PRŮMĚR ručně – napište =PRŮMĚR(G3:G6). ",null,"Pomeranče",20,null,"Kuřecí",30]
["V buňce D15 můžete pomocí nabídky u tlačítka Automatické shrnutí nebo ručně zadat další funkci PRŮMĚR. ",null,"Banány",60,null,"Vepřové",10]
["VŠIMNĚTE SI\nKdyž vyberete libovolnou oblast čísel, můžete průměr okamžitě zjistit na stavovém řádku.\n",null,"Citrony",40,null,"Ryby",50]
["Aktivovat předchozí list",null,"PRŮMĚR >",null,null,"PRŮMĚR >"]
["Přejít na další list"]
["BONUS\nZkuste tu použít funkci MEDIAN nebo MODE. \n\nFunkce MEDIAN vrátí hodnotu uprostřed množiny dat, zatímco funkce \nMODE vrátí hodnotu, která se vyskytuje nejčastěji.\n",null,"Položka","Množství",null,"Položka","Množství"]
["Odkazy na další informace na webu",null,"Chleba",50,null,"Chleba",50]
["Pomocí této možnosti zobrazíte všechny informace o funkci PRŮMĚR na webu.",null,"Koblihy",100,null,"Koblihy",100]
["Pomocí této možnosti zobrazíte všechny informace o funkci MEDIAN na webu.",null,"Sušenky",40,null,"Sušenky",40]
["Pomocí této možnosti zobrazíte všechny informace o funkci MODE na webu.",null,"Buchty",50,null,"Buchty",50]
["Pomocí této možnosti můžete přejít na bezplatná školení k Excelu na webu.",null,"Koláče",20,null,"Koláče",20]
[null,null,"PRŮMĚR >"]

{"sheet":"MIN a MAX","index":4,"n_rows":15,"n_cols":7,"rows_kept":15}
["Funkce MIN a MAX"]
["Pomocí funkce MIN můžete zjistit nejmenší číslo v oblasti buněk.",null,"Ovoce","Množství",null,"Maso","Množství"]
["Pomocí funkce MAX můžete zjistit největší číslo v oblasti buněk.",null,"Jablka",50,null,"Hovězí",50]
["Vyberte buňku D7 a pomocí průvodce automatickým shrnutím přidejte funkci MIN.\n",null,"Pomeranče",20,null,"Kuřecí",30]
["Teď vyberte buňku G7 a zadejte ručně funkci MAX – napište =MAX(G3:G6).\n",null,"Banány",60,null,"Vepřové",10]
["V buňce D15 můžete pomocí průvodce automatickým shrnutím nebo ručně zadat funkci MIN nebo MAX. \n",null,"Citrony",40,null,"Ryby",50]
["Další informace na webu\n",null,"MIN >",null,null,"MAX >"]
["Všechny informace o funkci MIN"]
["Všechny informace o funkci MAX",null,"Položka","Množství",null,"Položka","Množství"]
["Bezplatná školení k Excelu online",null,"Chleba",50,null,"Chleba",50]
["JE DOBRÉ VĚDĚT\nFunkce MIN a MAX můžete použít s více oblastmi, například =MIN(A1:A10;B1:B10). Můžete také použít prahovou hodnotu, třeba =MAX(A1:A10;B1), kde prahovou hodnotu obsahuje buňka B1. Kdyby v ní bylo číslo 10, tak by vzorec nikdy nevrátil výsledek menší než 10.\n",null,"Koblihy",100,null,"Koblihy",100]
[null,null,"Sušenky",40,null,"Sušenky",40]
[null,null,"Buchty",50,null,"Buchty",50]
[null,null,"Koláče",20,null,"Koláče",20]
[null,null,"MIN nebo MAX >",{"$nulls":3},{"$f":"MIN(G10:G14,10)","v":10}]

{"sheet":"Datum a čas","index":5,"n_rows":47,"n_cols":6,"rows_kept":47,"merged":[[4,2,4,3],[26,2,26,3],[30,2,30,3],[44,2,44,3]]}
["Datové funkce"]
["Excel vám může ukázat aktuální datum podle místních nastavení vašeho počítače. Kalendářní data jde také sčítat a odečítat."]
["Vyzkoušejte si funkci DNES, která vám ukáže dnešní datum. Jde o jednu z dynamických, stále přepočítávaných funkcí, takže pokud byste sešit otevřeli zítra, bylo by v něm zítřejší datum. Zadejte funkci =DNES() do buňky D6. \n"]
["Odečítání kalendářních dat – Zadejte datum svých příštích narozenin do buňky D7 a podívejte se, jak vám Excel ukáže, kolik dní do nich zbývá, pomocí vzorce =D7-D6 v buňce D8.\n"]
["Sčítání kalendářních dat – Řekněme, že chcete zjistit, k jakému datu je splatná nějaká faktura nebo kdy musíte vrátit knížku do knihovny. Můžete to zjistit přičtením počtu dnů k datu. Do buňky D10 zadejte libovolný počet dní. Do buňky D11 jsme přidali vzorec =D6+D10, který vypočítá datum splatnosti od aktuálního dne.\n",null,"Datové funkce"]
["JE DOBRÉ VĚDĚT\nExcel uchovává kalendářní data a časy jako počet dní od 1. ledna 1900. Časy se uchovávají jako desetinné části dne na základě minut. Datum a čas 1. 1. 2017, 12:30 se tak ve skutečnosti uloží jako 42736,5208. Pokud se vám čas nebo datum zobrazí jako takovéto číslo, můžete stisknout Ctrl+1 > Číslo > vybrat formát Datum nebo Čas. ",null,"Dnešní datum:",null,null,{"$f":"IF(D6=TODAY(),\"You got it!\",\"\")","v":""}]
["DŮLEŽITÝ DETAIL\nPokud nechcete, aby Excel zobrazoval záporné číslo, když jste ještě narozeniny nezadali, můžete využít funkci KDYŽ, a to takto: =KDYŽ(D7=\"\";\"\";D7-D6). Tento vzorec znamená: Pokud je buňka D7 prázdná, nezobrazí se nic, v opačném případě se zobrazí výsledek D7 minus D6.\n",null,"Vaše narozeniny:"]
["Časové funkce",null,"Počet dnů do vašich narozenin:",{"$f":"D7-D6","v":0}]
["Excel vám může ukázat aktuální čas podle místních nastavení vašeho počítače. Časy jde také sčítat a odečítat. Můžete například potřebovat udržovat záznamy o tom, kolik hodin odpracoval zaměstnanec každý měsíc, a podle toho vypočítat jeho výplatu a přesčasy.\n"]
["Do buňky D28 zadejte =NYNÍ(). Tím získáte aktuální čas, který se bude aktualizovat pokaždé, když Excel přepočítá sešit. Pokud potřebujete změnit formát času, můžete stisknout Ctrl+1 > Číslo > Čas > vybrat požadovaný formát.\n",null,"Poskytnutá lhůta ve dnech:"]
["Sečtení hodin mezi časy – Do buňky D36 jsme zadali vzorec =((D35-D32)-(D34-D33))*24, který vypočítá rozdíl mezi příchodem a odchodem zaměstnance a odečte od něj dobu strávenou na obědě. Výraz *24 na konci vzorce převede desetinnou část dne, kterou Excel vypočítá, na počet hodin. Buňku bude ale potřeba naformátovat jako číslo. Postup je tento: Přejděte na Domů > Formát > Buňky (Ctrl+1) > Číslo > Číslo > 2 desetinná místa.\n\n",null,"Datum splatnosti faktury:",{"$f":"D6+D10","v":"00:00:00"}]
["Pokud by tento vzorec mohl mluvit, řekl by: Vezme se odchod z práce a odečte se od něj příchod do práce, pak se odečte rozdíl mezi příchodem z oběda a odchodem na oběd a výsledek se vynásobí číslem 24, aby se desetinná hodnota času v Excelu převedla na hodiny. Dalo by se to také vyjádřit takto: =((Odchod - Příchod)-(Odchod na oběd - Příchod z oběda))*24."]
["Předchozí"]
["Další"]
["Další informace na webu"]
["Všechny informace o funkci DNES"]
["Všechny informace o funkci NYNÍ"]
["Všechny informace o funkci DATUM"]
["Bezplatná školení k Excelu online"]
{"$rows_empty":7}
[null,null,"Časové funkce"]
[null,null,"Aktuální čas:"]
[]
[]
[null,null,"Odpracované hodiny za den"]
[null,null,"Příchod:","08:00:00"]
[null,null,"Odchod na oběd:","12:00:00"]
[null,null,"Příchod z oběda:","13:00:00"]
[null,null,"Odchod:","17:00:00"]
[null,null,"Hodiny celkem:",{"$f":"((D35-D32)-(D34-D33))*24","v":8.000000000000002}]
{"$rows_empty":8}
[null,null,"Statické datum a čas"]
[null,null,"Datum:","2017-09-27"]
[null,null,"Čas:","08:52:00"]

{"sheet":"Spojování textu a čísel","index":6,"n_rows":37,"n_cols":6,"rows_kept":37,"merged":[[26,2,26,3],[30,2,30,3],[34,2,34,3]]}
["Spojování textu z různých buněk"]
["V Excelu se často stává, že chcete spojit text, který je v různých buňkách. Běžným příkladem je situace, kdy máte křestní jména a příjmení a chcete je spojit do celých jmen. V Excelu to naštěstí můžeme jednoduše udělat pomocí znaku &, který se dá zadat kombinací kláves Ctrl+Alt+C.\n",null,"Jméno","Příjmení","Příjmení, jméno","Jméno a příjmení"]
["V buňce E3 zkuste spojit jméno a příjmení zadáním vzorce =D3&C3. \n",null,"Jana","Blažková",{"$f":"D3&\", \"&C3","v":"Blažková, Jana"},{"$f":"C3&\" \"&D3","v":"Jana Blažková"}]
["Jméno BlažkováJana ale nevypadá moc dobře. Potřebujeme přidat čárku a mezeru. Uděláme to tak, že pomocí uvozovek vytvoříme nový textový řetězec. Tentokrát zadejte =D3&\", \"&C3. Část &\", \"& nám umožnila spojit čárku a mezeru s hodnotami buněk.\n",null,"Ondřej","Kubát"]
["Když budeme chtít vytvořit celé jméno s křestním jménem na začátku, využijeme znovu mezeru, ale bez čárky. Do buňky F3 zadejte =C3&\" \"&D3.\n",null,"Jan","Macek"]
["Podívat se na to podrobněji",null,"Marie","Marková"]
["Další",null,"Stanislav","Tomek"]
["Společné použití textu a čísel",null,"Michal","Formánek"]
["Teď pomocí znaku & nebudeme spojovat dvě textové hodnoty, ale texty a čísla.\n\nPodívejte se na buňky C28:D29. Vidíte datum a čas v samostatných buňkách? Když je rychle spojíte s texty pomocí znaku & způsobem, který vidíte v buňkách C32:C33, výsledek nevypadá moc dobře, že? Excel bohužel neví, jak chcete formátovat čísla, takže použije jejich nejzákladnější formát, kterým je v tomto případě pořadové datum. Excelu musíme výslovně říct, jakým způsobem chceme číselnou část vzorce formátovat, aby se ve výsledném textovém řetězci zobrazila požadovaným způsobem. Můžete to udělat pomocí funkce HODNOTA.NA.TEXT a kódu formátu.",null,"Rudolf","Spousta"]
["Do buňky C36 zadejte =C28&\" \"&HODNOTA.NA.TEXT(D28;\"DD.MM.RRRR\"). DD.MM.RRRR je kód českého formátu den. měsíc. rok, například 25. 09. 2017.\n",null,"Ivana","Červenková"]
["Do buňky C37 zadejte =C29&\" \"&HODNOTA.NA.TEXT(D29;\"H:MM\"). H:MM je kód českého formátu hodiny:minuty, například 13:30.\n\n"]
["VŠIMNĚTE SI\nVzorce, hlavně ty delší, může být někdy trochu těžší přečíst. Mohlo by ale pomoct, když si jednotlivé části rozdělíte pomocí mezer, například takto:\n\n=C28 & \" \" & HODNOTA.NA.TEXT(D28;\"D. M. RRRR\")"]
["BUDE SE HODIT\nPokud nevíte, jaký kód formátu použít, můžete stisknout Ctrl+1 > Číslo a nastavit požadovaný formát buňky. Pak vyberte možnost Vlastní. Kód formátu, který se zobrazí, pak můžete zkopírovat do svého vzorce."]
["Další informace na webu"]
["Všechny informace o funkci HODNOTA.NA.TEXT"]
["Spojování textu a čísel"]
["Bezplatná školení k Excelu online"]
{"$rows_empty":9}
[null,null,"Použití textu a čísel"]
[null,null,"Dnešní datum:",{"$f":"TODAY()","v":"2021-10-19"}]
[null,null,"Aktuální čas:",{"$f":"NOW()","v":44488.37846284722}]
[]
[null,null,"Spojování textu a čísel"]
[null,null,{"$f":"C28&\" \"&D28","v":"Dnešní datum: 44488"}]
[null,null,{"$f":"C29&\" \"&D29","v":"Aktuální čas: 44488.3784628472"}]
[]
[null,null,"Formátování textu a čísel"]
[null,null,{"$f":"C28 &\" \"& TEXT(D28,\"DD.MM.RRRR\")","v":"Dnešní datum: 19.10.RRRR"}]
[null,null,{"$f":"C29&\" \"&TEXT(D29,\"H:MM\")","v":"Aktuální čas: 9:04"}]

{"sheet":"Příkazy KDYŽ","index":7,"n_rows":37,"n_cols":6,"rows_kept":37,"merged":[[7,2,7,3]]}
["Příkazy KDYŽ"]
["Příkazy KDYŽ umožňují provádět logická porovnání podmínek. Příkaz KDYŽ obecně říká, že pokud je jedna podmínka splněná, má se něco udělat, jinak se má udělat něco jiného. Vzorce můžou vrátit text, hodnoty, nebo dokonce i další výpočty."]
["Do buňky D9 zadejte =KDYŽ(C9=\"Jablko\";PRAVDA;NEPRAVDA). Správná odpověď je PRAVDA. \n"]
["Zkopírujte buňku D9 do buňky D10. Tady by výsledek měl být NEPRAVDA, protože pomeranč není jablko.\n"]
["Vyzkoušejte si další příklad. Podívejte se na vzorec v buňce D12. Je tu napsané =KDYŽ(C12<100;\"Menší než 100\";\"Větší než 100\"). Co se stane, když do buňky C12 zadáte číslo větší než 100?\n"]
["DŮLEŽITÝ DETAIL\nSlova PRAVDA a NEPRAVDA se liší od jiných slov v excelových vzorcích tím, že se nemusí uzavírat do uvozovek a že je Excel automaticky nastavuje na velká písmena. Čísla také nemusí být v uvozovkách. Běžný text, jako jsou slova Ano a Ne, musí být v uvozovkách: \n=KDYŽ(C9=“Jablko“,“Ano“,“Ne“)"]
["Podívat se na to podrobněji"]
["Další",null,"Příkazy KDYŽ"]
["Příkaz KDYŽ s další funkcí",null,"Jablko"]
["Příkazy KDYŽ můžou také vynucovat, aby se v případě splnění nějaké podmínky provedly další výpočty. Tady vyhodnocením buňky zjistíme, jestli by se měla naúčtovat DPH, a pokud bude podmínka splněná, vypočítáme její hodnotu.\n",null,"Pomeranč"]
["Do buňky F33 jsme zadali =KDYŽ(E33=\"Ano\";F31*DPH;0), přičemž DPH jsme nastavili jako pojmenovanou oblast s hodnotou 0,0825. Náš vzorec říká, že pokud se buňka E33 rovná Ano, pak se má buňka F31 vynásobit hodnotou DPH, jinak se má vrátit 0.\n\nZkuste hodnotu v buňce E33 změnit z Ano na Ne a uvidíte, jak se výpočet změní."]
["Dále jsme přidali příkaz KDYŽ, který v případě potřeby vypočítá dopravné. V buňce F35 uvidíte vzorec =KDYŽ(E35=\"Ano\";SUMA(D28:D29)*1,25;0). Tento vzorec říká: Pokud je v buňce E35 hodnota Ano, tak se vezme součet ze sloupce Množství v tabulce výše a vynásobí se hodnotou 1,25. V opačném případě se vrátí 0.\n",null,50,{"$f":"IF(C12<100,\"Menší než 100\",\"Větší než 100\")","v":"Menší než 100"}]
["Pak ještě změňte hodnotu 1,25 ve vzorci v buňce F35 na slovo Doprava. Když ho začnete psát, funkce automatických oprav Excelu by vám ho měla automaticky nabídnout. Až se to stane, můžete ho zadat stisknutím klávesy Tab. Jedná se o pojmenovanou oblast, kterou jsme zadali příkazem Vzorce > Definovat název. Pokud teď budete potřebovat změnit svoje náklady na dopravu, stačí to udělat na jednom místě a název Doprava můžete použít kdekoliv v sešitu.\n\n"]
["JE DOBRÉ VĚDĚT\nKdyž vytváříte vzorec, Excel automaticky umístí barevná ohraničení kolem oblastí, na které vzorec odkazuje, a odpovídající oblasti ve vzorci budou mít stejnou barvu. Podívat se na to můžete, když vyberete buňku F33 a stisknete klávesu F2, která umožňuje upravit vzorec."]
["TIP PRO ODBORNÍKA\nPojmenované oblasti umožňují definovat podmínky nebo hodnoty na jednom místě a opakovaně je používat v celém sešitu. Všechny pojmenované oblasti v tomto sešitu můžete zobrazit tak, že přejdete na Vzorce > Správce názvů. Kliknutím sem zobrazíte další informace.\n"]
["Předchozí"]
["Další"]
["Další informace na webu"]
["Všechny informace o funkci KDYŽ"]
["Všechny informace o funkci IFS"]
["Pokročilé příkazy KDYŽ"]
["Bezplatná školení k Excelu online"]
[]
[]
[]
[]
[null,null,"Položka","Množství","Cena","Celkem"]
[null,null,"Pomůcka",2,{"v":9.760711585683554,"d":"9.76 Kč"},{"$f":"'Příkazy KDYŽ'!$E$28:$E$29*'Příkazy KDYŽ'!$D$28:$D$29","v":{"v":19.521423171367108,"d":"19.52 Kč"}}]
[null,null,"Drobnost",3,{"v":3.4189202461080024,"d":"3.42 Kč"},{"$f":"'Příkazy KDYŽ'!$E$28:$E$29*'Příkazy KDYŽ'!$D$28:$D$29","v":{"v":10.256760738324008,"d":"10.26 Kč"}}]
[]
[{"$nulls":3},"Mezisoučet",{"$f":"SUM('Příkazy KDYŽ'!$E$28:$E$29)","v":{"v":13.179631831791557,"d":"13.18 Kč"}},{"$f":"SUM('Příkazy KDYŽ'!F28:F29)","v":{"v":29.778183909691116,"d":"29.78 Kč"}}]
[]
[{"$nulls":3},"DPH?","Ano",{"$f":"IF(E33=\"Ano\",F31*DPH,0)","v":{"v":2.456700172549517,"d":"2.46 Kč"}}]
[]
[{"$nulls":3},"Doprava?","Ano",{"$f":"IF(E35=\"Ano\",SUM(D28:D29)*1.25,0)","v":{"v":6.25,"d":"6.25 Kč"}}]
[]
[{"$nulls":3},"Celkem",null,{"$f":"SUM(F33,F31,F35)","v":{"v":38.48488408224063,"d":"38.48 Kč"}}]

{"sheet":"SVYHLEDAT","index":8,"n_rows":43,"n_cols":7,"rows_kept":43}
["SVYHLEDAT"]
["Funkce SVYHLEDAT je jednou z nejčastěji používaných funkcí Excelu (a také jedna z našich nejoblíbenějších). Funkce SVYHLEDAT umožňuje hledat hodnotu ve sloupci vlevo, a když najde shodu, vrátí informace z jiného sloupce napravo. Funkce SVYHLEDAT říká:\n"]
["=SVYHLEDAT(A1;B:C;2;NEPRAVDA)"]
["Co chcete hledat?"]
["Pokud to najdete, o kolik sloupců napravo chcete získat hodnotu?"]
["Kde to chcete hledat?"]
["Požadujete přesnou nebo přibližnou shodu?"]
["Do buňky D22 zadejte =SVYHLEDAT(C22;C17:D20;2;NEPRAVDA). Správná odpověď pro Jablka je 50. Funkce SVYHLEDAT hledala text Jablka, našla ho, pak přešla o jeden sloupec doprava a vrátila množství.\n\n"]
["Teď si to vyzkoušejte sami v buňce G22 v části Maso. Měli byste dojít ke vzorci =SVYHLEDAT(F22;F17:G20;2;NEPRAVDA).\n\n"]
["EXPERIMENT\nZkuste v rozevíracích seznamech vybírat různé položky. Uvidíte, že buňky s výsledky se okamžitě zaktualizují a objeví se v nich nové hodnoty."]
["Podívat se na to podrobněji"]
["Další"]
["Funkce SVYHLEDAT a chyba #NENÍ_K_DISPOZICI"]
["Dříve nebo později asi narazíte na situaci, kdy funkce SVYHLEDAT nemůže najít, co jste chtěli, a vrátí chybu (#NENÍ_K_DISPOZICI). Někdy je to proto, že hledaná hodnota jednoduše neexistuje. Dalším důvodem může být, že v odkazované buňce ještě není žádná hodnota.\n"]
["Pokud víte, že hledaná hodnota existuje, a chcete skrýt chybu, pokud je vyhledávací buňka prázdná, můžete použít příkaz KDYŽ. V tomto případě zabalíme stávající vzorec s funkcí SVYHLEDAT v buňce D43 takto:\n\n=KDYŽ(C43=\"\";\"\";SVYHLEDAT(C43;C37:D41;2;NEPRAVDA))\n\nTento vzorec říká, že pokud v buňce C43 nic není (\"\"), nemá se nic vracet. V opačném případě se má vrátit výsledek funkce SVYHLEDAT. Všimněte si druhé pravé závorky na konci vzorce. Ta uzavírá příkaz KDYŽ.\n"]
["Pokud si nejste jistí, jestli hledaná hodnota existuje, ale přesto chcete chybu #NENÍ_K_DISPOZICI potlačit, můžete v buňce G43 použít funkci pro zpracování chyb IFERROR: =IFERROR(SVYHLEDAT(F43;F37:G41;2;NEPRAVDA);\"\"). Tato funkce IFERROR říká, že když funkce SVYHLEDAT vrátí platný výsledek, tak se má zobrazit, v opačném případě se nemá zobrazovat nic (\"\"). Tady jsme se rozhodli nezobrazovat nic (\"\"), ale mohli byste také zobrazit nějaké číslo (0,1, 2 apod.) nebo text, například „Vzorec není správný“.\n",null,"Ovoce","Množství",null,"Maso","Množství"]
["DŮLEŽITÝ DETAIL\nFunkce IFERROR se označuje jako paušální obslužná rutina chyb, což znamená, že potlačí všechny chyby, které může vzorec vrátit. To může způsobit problémy, pokud vám Excel chce oznámit, že ve vzorci je nějaká skutečná chyba, kterou je třeba opravit.\n\nEmpirické pravidlo říká, že do vzorců byste neměli obslužné rutiny chyb přidávat, pokud si nejste naprosto jistí, že budou správně fungovat.",null,"Jablka",50,null,"Hovězí",50]
["Předchozí",null,"Pomeranče",20,null,"Kuřecí",30]
["Další",null,"Banány",60,null,"Vepřové",10]
["Další informace na webu",null,"Citrony",40,null,"Ryby",50]
["Všechny informace o funkci SVYHLEDAT"]
["Všechny informace o funkcích INDEX a POZVYHLEDAT",null,"Jablka",null,null,"Vepřové"]
["Všechny informace o funkci IFERROR"]
["Použití kontingenční tabulky k analýze dat listu"]
["Bezplatná školení k Excelu online"]
{"$rows_empty":9}
[null,null,"Pokud by funkce SUMA v buňce D42 mohla mluvit, řekla by toto: Sečíst hodnoty v buňkách D38, D39, D40 a D41."]
[null,null,"Položka","Množství",null,"Položka","Množství"]
[null,null,"Chleba",50,null,"Chleba",50]
[null,null,"Koblihy",100,null,"Koblihy",100]
[null,null,"Sušenky",40,null,"Sušenky",40]
[null,null,"Buchty",50,null,"Buchty",50]
[null,null,"Koláče",20,null,"Koláče",20]
[]
[{"$nulls":3},{"$f":"VLOOKUP(C43,C37:D41,2,FALSE)","v":{"$error":"#N/A"}},null,"Cukroví",{"$f":"IFERROR(VLOOKUP(F43,F37:G41,2,FALSE),\"\")","v":""}]

{"sheet":"Podmíněné funkce","index":9,"n_rows":123,"n_cols":34,"rows_kept":123}
["Podmíněné funkce – SUMIF"]
["Podmíněné funkce umožňují vypočítat součet, průměr nebo počet anebo najít minimum nebo maximum pro oblast na základě dané podmínky nebo kritéria, které určíte. Můžete třeba zjistit, kolik je v seznamu ovoce jablek. Nebo kolik pomerančů je floridských.",null,"Ovoce","Množství",null,"Ovoce","Typ","Množství",{"$nulls":17},"Ovoce",null,"Jablka",null,"Pomeranče",null,"Banány",null,"Citrony"]
["Funkce SUMIF umožňuje sečíst jednu oblast na základě specifického kritéria, které hledáte v jiné oblasti, například kolik máte jablek. Vyberte buňku D17 a zadejte =SUMIF(C3:C14;C17;D3:D14). Funkce SUMIF má tuto strukturu:",null,"Jablka",50,null,"Jablka","Jonagold",50,{"$nulls":17},"Jablka",null,"Jonagold",null,"Floridské",null,"Cavendish",null,"Verna"]
[{"$f":"SUMIF(C3:C14,C17,D3:D14)","v":150},null,"Pomeranče",20,null,"Pomeranče","Floridské",20,{"$nulls":17},"Pomeranče",null,"Rubín",null,"Navel",null,"Baby",null,"Primofiori"]
["Jakou oblast chcete prohledat?",null,"Banány",60,null,"Banány","Cavendish",60,{"$nulls":17},"Banány"]
["Jakou hodnotu (text nebo číslo) chcete hledat?",null,"Citrony",40,null,"Citrony","Verna",40,{"$nulls":17},"Citrony"]
["Jakou oblast chcete pro každou shodu sečíst?",null,"Jablka",50,null,"Jablka","Rubín",50]
["Funkce SUMIFS je stejná jako funkce SUMIF, ale umožňuje použít více kritérií. V tomto příkladu tedy budete moct hledat podle sloupců Ovoce a Typ (na rozdíl od předchozího, kdy se hledalo jenom podle sloupce Ovoce). Vyberte buňku H17 a zadejte =SUMIFS(H3:H14;F3:F14;F17;G3:G14;G17). Funkce SUMIFS má tuto strukturu:\n",null,"Pomeranče",20,null,"Pomeranče","Navel",20]
["=SUMIFS(H3:H14;F3:F14;F17;G3:G14;G17)",null,"Banány",60,null,"Banány","Baby",60]
["Jakou oblast chcete sečíst?",null,"Citrony",40,null,"Citrony","Primofiori",40]
["Toto je první oblast, ve které se mají hledat shody.",null,"Jablka",50,null,"Jablka","Rubín",50]
["Toto je kritérium pro první shodu.",null,"Pomeranče",20,null,"Pomeranče","Navel",20]
["Toto je druhá oblast, ve které se mají hledat shody.",null,"Banány",60,null,"Banány","Cavendish",60]
["Toto je kritérium pro druhou shodu.",null,"Citrony",40,null,"Citrony","Primofiori",40]
["TIP PRO ODBORNÍKA\nV buňkách pro výběr ovoce a typu jsou rozevírací seznamy, které vám pomůžou vybrat různé typy ovoce. Vyzkoušejte si to a sledujte, jak se budou výsledky vzorce automaticky aktualizovat."]
["Podívat se na to podrobněji",null,"Ovoce","SUMIF",null,"Ovoce","Typ","SUMIFS"]
["Další krok",null,"Jablka",null,null,"Pomeranče","Floridské"]
["Podmíněné funkce – COUNTIF"]
["Funkce COUNTIF a COUNTIFS umožňují počítat hodnoty v oblasti podle kritéria, které zadáte. Od ostatních funkcí končících na IF a IFS se trochu liší tím, že mají jenom oblast, kde se vyhodnocuje kritérium, a samotné kritérium. Nevyhodnocují tedy jednu oblast s tím, že by potom sečítaly druhou oblast."]
["Vyberte buňku D64 a zadejte =COUNTIF(C50:C61;C64). Funkce COUNTIF má tuto strukturu:"]
["=COUNTIF(C50:C61;C64)"]
["Jakou oblast chcete prohledat?"]
["Jakou hodnotu (text nebo číslo) chcete hledat?"]
["Funkce COUNTIFS je stejná jako funkce COUNTIF, ale umožňuje použít více kritérií. V tomto příkladu tedy budete moct hledat podle sloupců Ovoce a Typ (na rozdíl od předchozího, kdy se hledalo jenom podle sloupce Ovoce). Vyberte buňku H64 a zadejte =COUNTIFS(F50:F61;F64;G50:G61;G64). Funkce COUNTIFS má tuto strukturu:\n"]
["=COUNTIFS(F50:F61;F64;G50:G61;G64)"]
["Toto je první oblast, ve které se mají počítat shody."]
["Toto je kritérium pro první shodu."]
["Toto je druhá oblast, ve které se mají počítat shody."]
["Toto je kritérium pro druhou shodu."]
["Podívat se na to podrobněji"]
["Další"]
["Další podmíněné funkce"]
["Už jste viděli funkce SUMIF, SUMIFS, COUNTIF a COUNTIFS. Teď si můžete sami vyzkoušet další funkce, třeba AVERAGEIF/S, MAXIFS a MINIFS. Všechny mají stejnou strukturu, takže když máte hotový jeden vzorec, stačí v něm jenom nahrazovat název funkce. Připravili jsme vám všechny funkce, které si můžete vyzkoušet v buňce E106. Můžete je tam buď zkopírovat a vložit, nebo je zkuste v zájmu procvičení napsat sami ručně.\n\nSUMIF \t=SUMIF(C92:C103;C106;E92:E103) \nSUMIFS \t=SUMIFS(E92:E103;C92:C103;C106;D92:D103;D106) \nAVERAGEIF \t=AVERAGEIF(C92:C103;C106;E92:E103) \nAVERAGEIFS\t=AVERAGEIFS(E92:E103;C92:C103;C106;D92:D103;D106)\nCOUNTIF \t=COUNTIF(C92:C103;C106)\nCOUNTIFS \t=COUNTIFS(C92:C103;C106;D92:D103;D106) \nMAXIFS \t=MAXIFS(E92:E103;C92:C103;C106;D92:D103;D106)\nMINIFS \t=MINIFS(E92:E103;C92:C103;C106;D92:D103;D106)"]
["Podívat se na to podrobněji"]
["Další"]
["Funkce SUMIF s hodnotovým argumentem"]
["Tady je příklad funkce SUMIF, která pomocí operátoru větší než (>) hledá všechny hodnoty větší než zadané číslo:"]
[{"$f":"SUMIF(D118:D122,\">=50\")","v":200}]
["Sečíst několik hodnot založených na tomto kritériu:"]
["...Prostudovat tyto buňky...\n "]
["...a pokud je hodnota větší než 50, sečíst.\n "]
["POZNÁMKA: Pokud zjistíte, že vytváříte hodně podmíněných vzorců, možná by pro vás byla lepším řešením kontingenční tabulka. Další informace najdete v tomto článku o kontingenčních tabulkách."]
["Další informace na webu"]
["Všechny informace o funkci SUMIF"]
["Všechny informace o funkci SUMIFS"]
["Všechny informace o funkci COUNTIF"]
["Všechny informace o funkci COUNTIFS"]
["Všechny informace o funkci AVERAGEIF"]
["Všechny informace o funkci AVERAGEIFS",null,"Ovoce","Množství",null,"Ovoce","Typ","Množství"]
["Všechny informace o funkci MINIFS",null,"Jablka",50,null,"Jablka","Jonagold",50]
["Všechny informace o funkci MAXIFS",null,"Pomeranče",20,null,"Pomeranče","Floridské",20]
["Vytvoření rozevíracího seznamu",null,"Banány",60,null,"Banány","Cavendish",60]
["Bezplatná školení k Excelu online",null,"Citrony",40,null,"Citrony","Verna",40]
["Zpět nahoru",null,"Jablka",50,null,"Jablka","Rubín",50]
["Další",null,"Pomeranče",20,null,"Pomeranče","Navel",20]
[null,null,"Banány",60,null,"Banány","Baby",60]
[null,null,"Citrony",40,null,"Citrony","Primofiori",40]
[null,null,"Jablka",50,null,"Jablka","Rubín",50]
[null,null,"Pomeranče",20,null,"Pomeranče","Navel",20]
[null,null,"Banány",60,null,"Banány","Cavendish",60]
[null,null,"Citrony",40,null,"Citrony","Primofiori",40]
[]
[null,null,"Ovoce","COUNTIF",null,"Ovoce","Typ","COUNTIFS"]
[null,null,"Jablka",{"$f":"COUNTIF(C50:C61,C64)","v":3},null,"Pomeranče","Floridské",{"$f":"COUNTIFS(F50:F61,F64,G50:G61,G64)","v":1}]
{"$rows_empty":26}
[null,null,"Ovoce","Typ","Množství"]
[null,null,"Jablka","Jonagold",50]
[null,null,"Pomeranče","Floridské",20]
[null,null,"Banány","Cavendish",60]
[null,null,"Citrony","Verna",40]
[null,null,"Jablka","Rubín",50]
[null,null,"Pomeranče","Navel",20]
[null,null,"Banány","Baby",60]
[null,null,"Citrony","Primofiori",40]
[null,null,"Jablka","Rubín",50]
[null,null,"Pomeranče","Navel",20]
[null,null,"Banány","Cavendish",60]
[null,null,"Citrony","Primofiori",40]
[]
[null,null,"Ovoce","Typ","Zkuste si to"]
[null,null,"Citrony","Primofiori",{"$f":"AVERAGEIFS(E92:E103,C92:C103,C106,D92:D103,D106)","v":40}]
{"$rows_empty":10}
[null,null,"Položka","Množství"]
[null,null,"Chleba",50]
[null,null,"Koblihy",100]
[null,null,"Sušenky",40]
[null,null,"Buchty",50]
[null,null,"Koláče",20]
[{"$nulls":3},{"$f":"SUMIF(D118:D122,\">=50\")","v":200}]

{"sheet":"Průvodce funkcemi","index":10,"n_rows":14,"n_cols":4,"rows_kept":14}
["Nechejte si poradit od průvodce funkcemi"]
["Pokud znáte název funkce, kterou chcete použít, ale nevíte, jak přesně vytvořit vzorec, může vám pomoct průvodce funkcemi.\n"]
["Vyberte buňku D10 a pak přejděte na Vzorce > Vložit funkci > do pole Vyhledat funkci zadejte SVYHLEDAT a stiskněte Přejít. Až uvidíte zvýrazněnou funkci SVYHLEDAT, klikněte dole na OK. Když funkci vyberete v seznamu, Excel zobrazí její syntaxi.\n"]
["Dalším krokem je zadat argumenty funkce do příslušných textových polí. Excel zadávané argumenty vyhodnotí a zobrazí jejich výsledek. Pod nimi potom zobrazí konečný výsledek. Při zadávání jednotlivých argumentů se v dolní části formuláře zobrazí jejich kritéria. Až všechno zadáte, stiskněte OK a Excel vzorec vloží do sešitu.\n\n\n",null,"Ovoce","Množství"]
["VŠIMNĚTE SI\nMěli byste dojít ke vzorci =SVYHLEDAT(C10;C5:D8;2;NEPRAVDA).",null,"Jablka",50]
["JE DOBRÉ VĚDĚT\nOdkazy na buňky a oblasti můžete napsat na klávesnici nebo je můžete vybrat myší.",null,"Pomeranče",20]
["JE DOBRÉ VĚDĚT\nPři zadávání jednotlivých argumentů se v dolní části formuláře poblíž výsledku vzorce zobrazí jejich popis.\n",null,"Banány",60]
["Předchozí",null,"Citrony",40]
["Další"]
["Další informace na webu",null,"Jablka",{"$f":"VLOOKUP(C10,C5:D8,2,FALSE)","v":50}]
["Přehled vzorců v Excelu"]
["Funkce Excelu (podle kategorie)"]
["Funkce Excelu (podle abecedy)"]
["Bezplatná školení k Excelu online"]

{"sheet":"Chyby ve vzorcích","index":11,"n_rows":36,"n_cols":4,"rows_kept":36}
["Oprava chyb ve vzorcích"]
["Dříve nebo později určitě narazíte na vzorec, který obsahuje chybu, což Excel zobrazí jako #NázevChyby. Chyby můžou být užitečné, protože upozorní na to, že něco nefunguje správným způsobem, ale může být obtížné je opravit. Naštěstí je ale k dispozici několik možností, které vám pomůžou najít příčinu chyby a opravit ji.\n"]
["Kontrola chyb – Přejděte na Vzorce > Kontrola chyb. Načte se dialogové okno, které vám vysvětlí obecnou příčinu vaší konkrétní chyby. V buňce D9 je chyba #NENÍ_K_DISPOZICI kvůli tomu, že nešlo najít hodnotu Jablko. Tuto chybu můžete vyřešit tím, že použijete hodnotu, která skutečně existuje, nebo ji můžete potlačit pomocí funkce IFERROR. Můžete ji také ignorovat s tím, že budete vědět, že až použijete existující hodnotu, chyba zmizí.\n",null,"Ovoce","Množství"]
["Pokud kliknete na Nápověda k této chybě, otevře se téma nápovědy specifické pro danou chybovou zprávu. Když kliknete na Zobrazit kroky výpočtu, načte se dialogové okno Vyhodnotit vzorec.\n",null,"Jablka",50]
["Při každém kliknutí na Vyhodnotit provede Excel jeden krok ve vzorci. Nemusí vám při tom přesně říct, proč k chybě dochází, ale ukáže vám, kdy k ní dojde. Pak se podívejte na příslušné téma nápovědy a zkuste vyvodit, co je ve vzorci špatně.\n",null,"Pomeranče",20]
["EXPERIMENT\nCo je tu špatně? Rada: Zkoušíme SUMArizovat všechny položky.",null,"Banány",60]
["JE DOBRÉ VĚDĚT\nKdyž kliknete na Možnosti, můžete nastavit pravidla, kdy se chyby v Excelu mají zobrazit nebo ignorovat.\n",null,"Citrony",40]
["Předchozí"]
["Další",null,"Jablko",{"$f":"VLOOKUP(C9,C3:D7,2,FALSE)","v":{"$error":"#N/A"}}]
["Další informace na webu"]
["Zjišťování chyb ve vzorcích"]
["Jak se vyhnout nefunkčním vzorcům"]
["Vyhodnocování vnořených vzorců po jednotlivých krocích"]
["Bezplatná školení k Excelu online"]
{"$rows_empty":15}
[null,null,"Ovoce","Množství"]
[null,null,"Jablka",50]
[null,null,"Pomeranče",20]
[null,null,"Banány",60]
[null,null,"Citrony",40]
[]
[null,null,"Celkem",{"$f":"sume(D31:D34)","v":{"$error":"#NAME?"}}]

{"sheet":"Další informace","index":12,"n_rows":6,"n_cols":1,"rows_kept":6}
["Máte k Excelu další otázky?"]
["Stiskněte Alt+Ě a napište, co chcete vědět."]
["Pokračujte dál. S Excelem se toho dá naučit ještě více:"]
["LinkedIn Learning: Videokurzy pro všechny úrovně – od začátečníků po pokročilé. Pracujte s nimi vlastním tempem.\n"]
["Komunita: Ptejte se a spojte se s dalšími fanoušky Excelu.\n"]
["Co ještě je nového?\nPředplatitelé služeb Office 365 dostávají nepřetržité aktualizace a nové funkce.\n\n"]